[Event "Chpt Reg Jeunes Occitanie 2026 - Espalion"]
[Site "Espalion, France"]
[Round "1.1"]
[ECO "?"]
[Annotator "?"]
[TimeControl "1h30 + 30sec/cp"]

1. e4 {[%clk 1:30:59][%emt 0:00:01]} 1... Nc6 {[%clk 1:30:53][%emt 0:00:05]}
2. Nf3 {[%clk 1:30:56][%emt 0:00:32]} 2... d5 {[%clk 1:31:16][%emt 0:00:07]}
3. exd5 {[%clk 1:30:59][%emt 0:00:28]} 3... Qxd5 {[%clk 1:31:35][%emt 0:00:11]}
 4. Nc3 {[%clk 1:31:03][%emt 0:00:25]} 4... Qd6 {[%clk 1:30:56][%emt 0:01:09]}
5. Bb5 {[%clk 1:28:55][%emt 0:02:38]} 5... a6 {[%clk 1:30:41][%emt 0:00:45]}
6. Bc4 {[%clk 1:26:39][%emt 0:02:45]} 6... b5 {[%clk 1:27:36][%emt 0:03:36]}
7. Be2 {[%clk 1:23:40][%emt 0:03:23]} 7... Nf6 {[%clk 1:27:28][%emt 0:00:43]}
8. d4 {[%clk 1:23:19][%emt 0:00:51]} 8... Bf5 {[%clk 1:25:25][%emt 0:02:32]}
9. a3 {[%clk 1:19:54][%emt 0:03:57]} 9... e6 {[%clk 1:21:15][%emt 0:04:40]}
10. Be3 {[%clk 1:17:39][%emt 0:02:45]} 10... Be7 {[%clk 1:19:58][%emt 0:01:46]}
 11. O-O {[%clk 1:16:29][%emt 0:01:40]} 11... h6 {[%clk 1:17:37][%emt 0:02:51]}
 12. Qd2 {[%clk 1:13:48][%emt 0:03:13]} 12... O-O {[%clk 1:14:51][%emt
0:03:14]} 13. Rfd1 {[%clk 1:13:33][%emt 0:00:45]} 13... Nd5 {[%clk
1:12:55][%emt 0:02:26]} 14. Nxd5 {[%clk 1:12:58][%emt 0:01:06]} 14... exd5
{[%clk 1:12:21][%emt 0:01:04]} 15. Bf4 {[%clk 1:12:29][%emt 0:00:59]} 15...
Qg6 {[%clk 1:01:29][%emt 0:11:21]} 16. Bd3 {[%clk 1:11:22][%emt 0:01:38]}
16... Rac8 {[%clk 0:56:44][%emt 0:05:13]} 17. Bxf5 {[%clk 1:11:05][%emt
0:00:47]} 17... Qxf5 {[%clk 0:56:56][%emt 0:00:19]} 18. Bg3 {[%clk
1:07:37][%emt 0:03:59]} 18... Bf6 {[%clk 0:54:39][%emt 0:02:46]} 19. c3 {[%clk
1:07:11][%emt 0:00:57]} 19... Na5 {[%clk 0:54:30][%emt 0:00:38]} 20. Rab1
{[%clk 1:06:06][%emt 0:01:36]} 20... Nc4 {[%clk 0:51:52][%emt 0:03:08]} 21.
Qf4 {[%clk 1:04:36][%emt 0:02:01]} 21... Qh5 {[%clk 0:43:27][%emt 0:08:54]}
22. Re1 {[%clk 1:02:54][%emt 0:02:13]} 22... c6 {[%clk 0:42:07][%emt 0:01:50]}
23. h3 {[%clk 1:00:48][%emt 0:02:36]} 23... Rfe8 {[%clk 0:38:57][%emt 0:03:38]}
 24. Rxe8+ {[%clk 0:58:40][%emt 0:02:39]} 24... Rxe8 {[%clk 0:38:53][%emt
0:00:34]} 25. Qc7 {[%clk 0:58:41][%emt 0:00:30]} 25... Qf5 {[%clk
0:38:03][%emt 0:01:18]} 26. Re1 {[%clk 0:58:32][%emt 0:00:40]} 26... Rxe1+
{[%clk 0:37:01][%emt 0:01:33]} 27. Nxe1 {[%clk 0:58:55][%emt 0:00:07]} 27...
Qe4 {[%clk 0:32:23][%emt 0:05:07]} 28. f3 {[%clk 0:58:41][%emt 0:00:44]} 28...
Qe2 {[%clk 0:32:12][%emt 0:00:41]} 29. Kh2 {[%clk 0:58:27][%emt 0:00:44]}
29... Ne3 {[%clk 0:30:16][%emt 0:02:26]} 30. Qxc6 {[%clk 0:57:43][%emt
0:01:15]} 30... Nf1+ {[%clk 0:30:27][%emt 0:00:19]} 31. Kg1 {[%clk
0:56:18][%emt 0:00:19]} 31... Nxg3 {[%clk 0:30:27]} 0-1

[White "FOPOLLO, Marvin"]
[Black "COMMENGES, Charli"]
[WhiteElo "1880"]
[BlackElo "1526"]
[Result "1-0"]
[Date "2026.03.04"]

[Event "Chpt Reg Jeunes Occitanie 2026 - Espalion"]
[Site "Espalion, France"]
[Round "1.2"]
[ECO "?"]
[Annotator "?"]
[TimeControl "1h30 + 30sec/cp"]

1. e4 {[%clk 1:30:59]} 1... d5 {[%clk 1:30:54][%emt 0:00:05]} 2. exd5 {[%clk
1:31:27][%emt 0:00:02]} 2... Qxd5 {[%clk 1:31:11][%emt 0:00:12]} 3. Nc3 {[%clk
1:31:56][%emt 0:00:02]} 3... Qa5 {[%clk 1:31:32][%emt 0:00:08]} 4. d4 {[%clk
1:32:21][%emt 0:00:05]} 4... c6 {[%clk 1:31:56][%emt 0:00:07]} 5. Nf3 {[%clk
1:32:49][%emt 0:00:02]} 5... Bg4 {[%clk 1:32:14][%emt 0:00:11]} 6. h3 {[%clk
1:33:11][%emt 0:00:09]} 6... Bh5 {[%clk 1:32:35][%emt 0:00:09]} 7. g4 {[%clk
1:33:39][%emt 0:00:02]} 7... Bg6 {[%clk 1:33:03][%emt 0:00:02]} 8. Bc4 {[%clk
1:32:19][%emt 0:01:50]} 8... e6 {[%clk 1:33:22][%emt 0:00:11]} 9. Bd2 {[%clk
1:31:45][%emt 0:01:03]} 9... Qc7 {[%clk 1:33:49][%emt 0:00:03]} 10. Ne5 {[%clk
1:29:52][%emt 0:02:24]} 10... Nd7 {[%clk 1:33:21][%emt 0:00:57]} 11. Bf4
{[%clk 1:22:44][%emt 0:07:38]} 11... Bd6 {[%clk 1:32:17][%emt 0:01:34]} 12.
Qe2 {[%clk 1:21:57][%emt 0:01:16]} 12... O-O-O {[%clk 1:27:42][%emt 0:05:07]}
13. O-O-O {[%clk 1:16:30][%emt 0:05:57]} 13... Ne7 {[%clk 1:21:27][%emt
0:06:44]} 14. Kb1 {[%clk 1:05:28][%emt 0:11:32]} 14... Nd5 {[%clk
1:19:48][%emt 0:02:09]} 15. Bxd5 {[%clk 0:58:57][%emt 0:07:01]} 15... exd5
{[%clk 1:19:02][%emt 0:01:17]} 16. Nxg6 {[%clk 0:46:03][%emt 0:13:24]} 16...
hxg6 {[%clk 1:18:37][%emt 0:00:54]} 17. Bxd6 {[%clk 0:45:58][%emt 0:00:35]}
17... Qxd6 {[%clk 1:18:59][%emt 0:00:09]} 18. Qf3 {[%clk 0:44:38][%emt
0:01:49]} 18... f6 {[%clk 1:17:25][%emt 0:02:05]} 19. Ne2 {[%clk 0:39:03][%emt
0:06:04]} 19... f5 {[%clk 1:00:11][%emt 0:17:45]} 20. gxf5 {[%clk
0:33:19][%emt 0:06:14]} 20... gxf5 {[%clk 1:00:28][%emt 0:00:12]} 21. Rhg1
{[%clk 0:32:15][%emt 0:01:34]} 21... g6 {[%clk 0:54:51][%emt 0:06:08]} 22. Nf4
{[%clk 0:31:38][%emt 0:01:04]} 22... Rhg8 {[%clk 0:52:16][%emt 0:03:08]} 23.
Rde1 {[%clk 0:26:41][%emt 0:05:27]} 23... Nf8 {[%clk 0:50:14][%emt 0:02:32]}
24. Re5 {[%clk 0:22:51][%emt 0:04:18]} 24... Qf6 {[%clk 0:49:41][%emt 0:01:04]}
 25. Qc3 {[%clk 0:19:30][%emt 0:03:52]} 25... Kb8 {[%clk 0:47:53][%emt
0:02:18]} 26. Rge1 {[%clk 0:16:51][%emt 0:03:09]} 26... Nh7 {[%clk
0:44:56][%emt 0:03:27]} 27. Re7 {[%clk 0:15:40][%emt 0:01:41]} 1-0

[White "FERREIRA FERNANDES, Alex"]
[Black "POSOCCO DE GRANDI, Marc"]
[WhiteElo "1501"]
[BlackElo "1871"]
[Result "0-1"]
[Date "2026.03.04"]

[Event "Chpt Reg Jeunes Occitanie 2026 - Espalion"]
[Site "Espalion, France"]
[Round "1.3"]
[ECO "?"]
[Annotator "?"]
[TimeControl "1h30 + 30sec/cp"]

1. e4 {[%clk 1:30:57][%emt 0:00:02]} 1... c5 {[%clk 1:30:54][%emt 0:00:05]} 2.
Nf3 {[%clk 1:31:03][%emt 0:00:24]} 2... Nc6 {[%clk 1:31:05][%emt 0:00:19]} 3.
Nc3 {[%clk 1:29:57][%emt 0:01:36]} 3... d6 {[%clk 1:31:21][%emt 0:00:13]} 4.
h3 {[%clk 1:29:56][%emt 0:00:31]} 4... e6 {[%clk 1:31:21][%emt 0:00:30]} 5. a3
{[%clk 1:25:08][%emt 0:05:19]} 5... Nf6 {[%clk 1:31:08][%emt 0:00:42]} 6. Be2
{[%clk 1:24:06][%emt 0:01:32]} 6... Be7 {[%clk 1:31:14][%emt 0:00:27]} 7. O-O
{[%clk 1:24:19][%emt 0:00:15]} 7... O-O {[%clk 1:31:27][%emt 0:00:17]} 8. Re1
{[%clk 1:19:12][%emt 0:05:36]} 8... a6 {[%clk 1:29:42][%emt 0:02:15]} 9. b3
{[%clk 1:15:50][%emt 0:03:53]} 9... d5 {[%clk 1:29:10][%emt 0:01:01]} 10. exd5
{[%clk 1:09:35][%emt 0:06:45]} 10... exd5 {[%clk 1:29:29][%emt 0:00:12]} 11.
d4 {[%clk 1:03:59][%emt 0:06:06]} 11... Bf5 {[%clk 1:26:45][%emt 0:03:14]} 12.
dxc5 {[%clk 1:01:23][%emt 0:03:06]} 12... Bxc5 {[%clk 1:24:55][%emt 0:02:19]}
13. Bd3 {[%clk 1:01:17][%emt 0:00:37]} 13... Bg6 {[%clk 1:17:35][%emt 0:07:50]}
 14. Bg5 {[%clk 0:54:11][%emt 0:07:36]} 14... Be7 {[%clk 1:15:49][%emt
0:02:16]} 15. Ne5 {[%clk 0:45:22][%emt 0:09:19]} 15... Rc8 {[%clk
1:11:25][%emt 0:04:54]} 16. Nxg6 {[%clk 0:43:10][%emt 0:02:41]} 16... hxg6
{[%clk 1:11:47][%emt 0:00:08]} 17. Ne2 {[%clk 0:37:49][%emt 0:05:52]} 17...
Bc5 {[%clk 0:55:03][%emt 0:17:14]} 18. Ng3 {[%clk 0:36:43][%emt 0:01:36]}
18... Bd4 {[%clk 0:52:34][%emt 0:02:58]} 19. Rb1 {[%clk 0:35:05][%emt 0:02:08]}
 19... Qb6 {[%clk 0:49:58][%emt 0:03:07]} 20. Qf3 {[%clk 0:32:38][%emt
0:02:57]} 20... Ne5 {[%clk 0:43:04][%emt 0:07:24]} 21. Qe2 {[%clk
0:32:11][%emt 0:00:57]} 21... Nxd3 {[%clk 0:40:52][%emt 0:02:43]} 22. cxd3
{[%clk 0:31:56][%emt 0:00:45]} 22... Rfe8 {[%clk 0:38:53][%emt 0:02:29]} 23.
Be3 {[%clk 0:31:22][%emt 0:01:05]} 23... Bxe3 {[%clk 0:37:08][%emt 0:02:15]}
24. fxe3 {[%clk 0:31:44][%emt 0:00:08]} 24... Qd6 {[%clk 0:37:02][%emt
0:00:36]} 25. Nf1 {[%clk 0:30:40][%emt 0:01:34]} 25... Qxa3 {[%clk
0:37:09][%emt 0:00:23]} 26. Kh1 {[%clk 0:30:26][%emt 0:00:43]} 26... Rc3
{[%clk 0:35:07][%emt 0:02:32]} 27. Nd2 {[%clk 0:27:46][%emt 0:03:10]} 27...
Nh5 {[%clk 0:33:58][%emt 0:01:39]} 0-1

[White "DOUCEMENT, Timothee"]
[Black "MENDEL, Clara"]
[WhiteElo "1856"]
[BlackElo "1499"]
[Result "1-0"]
[Date "2026.03.04"]

[Event "Chpt Reg Jeunes Occitanie 2026 - Espalion"]
[Site "Espalion, France"]
[Round "1.4"]
[ECO "?"]
[Annotator "?"]
[TimeControl "1h30 + 30sec/cp"]

1. c4 {[%clk 1:30:58][%emt 0:00:03]} 1... c5 {[%clk 1:29:59][%emt 0:01:00]} 2.
Nc3 {[%clk 1:31:21][%emt 0:00:07]} 2... Nc6 {[%clk 1:30:17][%emt 0:00:12]} 3.
g3 {[%clk 1:31:44][%emt 0:00:06]} 3... g6 {[%clk 1:27:06][%emt 0:03:42]} 4.
Bg2 {[%clk 1:32:04][%emt 0:00:09]} 4... Bg7 {[%clk 1:27:30][%emt 0:00:06]} 5.
Nf3 {[%clk 1:32:23][%emt 0:00:11]} 5... Nf6 {[%clk 1:27:32][%emt 0:00:29]} 6.
d4 {[%clk 1:32:33][%emt 0:00:20]} 6... cxd4 {[%clk 1:16:04][%emt 0:11:57]} 7.
Nxd4 {[%clk 1:32:49][%emt 0:00:14]} 7... O-O {[%clk 1:09:24][%emt 0:07:10]} 8.
Bf4 {[%clk 1:29:16][%emt 0:04:03]} 8... Nh5 {[%clk 1:04:03][%emt 0:05:51]} 9.
Be3 {[%clk 1:27:52][%emt 0:01:55]} 9... Ne5 {[%clk 0:57:05][%emt 0:07:28]} 10.
Qb3 {[%clk 1:26:04][%emt 0:02:17]} 10... Ng4 {[%clk 0:55:38][%emt 0:01:58]}
11. O-O {[%clk 1:23:27][%emt 0:03:07]} 11... Nxe3 {[%clk 0:52:06][%emt
0:04:01]} 12. fxe3 {[%clk 1:23:41][%emt 0:00:16]} 12... Rb8 {[%clk
0:43:29][%emt 0:09:08]} 13. Nd5 {[%clk 1:20:57][%emt 0:03:14]} 13... Nf6
{[%clk 0:41:54][%emt 0:02:04]} 14. Nb4 {[%clk 1:17:01][%emt 0:04:26]} 14...
Qc7 {[%clk 0:37:31][%emt 0:04:54]} 15. c5 {[%clk 1:09:01][%emt 0:08:29]} 15...
b6 {[%clk 0:32:09][%emt 0:05:52]} 16. c6 {[%clk 1:08:01][%emt 0:01:30]} 16...
a5 {[%clk 0:29:50][%emt 0:02:50]} 17. Nb5 {[%clk 1:04:19][%emt 0:04:12]} 17...
Qe5 {[%clk 0:28:46][%emt 0:01:33]} 18. c7 {[%clk 1:03:24][%emt 0:01:26]} 18...
Rb7 {[%clk 0:29:13][%emt 0:00:03]} 19. Bxb7 {[%clk 0:55:34][%emt 0:08:20]}
19... Bxb7 {[%clk 0:29:35][%emt 0:00:07]} 20. Nc2 {[%clk 0:53:20][%emt
0:02:45]} 20... Ng4 {[%clk 0:26:49][%emt 0:03:15]} 21. Rf4 {[%clk
0:44:55][%emt 0:08:55]} 21... Qh5 {[%clk 0:23:02][%emt 0:04:16]} 22. h4 {[%clk
0:44:54][%emt 0:00:33]} 22... Be5 {[%clk 0:22:44][%emt 0:00:47]} 23. Rf3
{[%clk 0:38:05][%emt 0:07:20]} 23... Bxf3 {[%clk 0:22:50][%emt 0:00:23]} 24.
exf3 {[%clk 0:38:24][%emt 0:00:12]} 24... Bxg3 {[%clk 0:21:00][%emt 0:02:19]}
25. fxg4 {[%clk 0:25:28][%emt 0:13:25]} 25... Qxg4 {[%clk 0:21:17][%emt
0:00:14]} 26. Ncd4 {[%clk 0:25:43][%emt 0:00:15]} 26... Bxc7+ {[%clk
0:21:22][%emt 0:00:23]} 27. Kf1 {[%clk 0:25:54][%emt 0:00:19]} 27... Bh2
{[%clk 0:20:27][%emt 0:01:27]} 28. Qd1 {[%clk 0:22:53][%emt 0:03:29]} 28...
Qxh4 {[%clk 0:19:11][%emt 0:01:48]} 29. Qf3 {[%clk 0:21:39][%emt 0:01:44]}
29... e5 {[%clk 0:17:50][%emt 0:01:51]} 30. Ne2 {[%clk 0:20:38][%emt 0:01:32]}
30... e4 {[%clk 0:16:38][%emt 0:01:41]} 31. Qf2 {[%clk 0:20:31][%emt 0:00:37]}
31... Qxf2+ {[%clk 0:16:06][%emt 0:01:03]} 32. Kxf2 {[%clk 0:20:59][%emt
0:00:02]} 32... Be5 {[%clk 0:16:23][%emt 0:00:12]} 33. Nec3 {[%clk
0:20:58][%emt 0:00:32]} 33... f5 {[%clk 0:15:36][%emt 0:01:16]} 34. Rd1 {[%clk
0:20:56][%emt 0:00:32]} 34... Rd8 {[%clk 0:14:45][%emt 0:01:21]} 35. Na4
{[%clk 0:20:04][%emt 0:01:23]} 35... g5 {[%clk 0:10:29][%emt 0:04:46]} 36. Rd5
{[%clk 0:19:57][%emt 0:00:37]} 36... Bh8 {[%clk 0:09:06][%emt 0:01:53]} 37.
Rxf5 {[%clk 0:19:58][%emt 0:00:29]} 37... Rf8 {[%clk 0:09:17][%emt 0:00:19]}
38. Rxf8+ {[%clk 0:20:06][%emt 0:00:22]} 38... Kxf8 {[%clk 0:09:41][%emt
0:00:06]} 39. b3 {[%clk 0:20:09][%emt 0:00:27]} 39... h5 {[%clk 0:08:42][%emt
0:01:28]} 40. Nxb6 {[%clk 0:19:37][%emt 0:01:03]} 40... Ke7 {[%clk
0:08:48][%emt 0:00:24]} 41. Nc4 {[%clk 0:19:21][%emt 0:00:47]} 41... g4 {[%clk
0:06:53][%emt 0:02:25]} 42. Nbd6 {[%clk 0:18:37][%emt 0:01:13]} 1-0

[White "SOLER MALBOS"]
[Black "DECLERCK, Timothee"]
[WhiteElo "1489"]
[BlackElo "1854"]
[Result "0-1"]
[Date "2026.03.04"]

[Event "Chpt Reg Jeunes Occitanie 2026 - Espalion"]
[Site "Espalion, France"]
[Round "1.5"]
[ECO "?"]
[Annotator "?"]
[TimeControl "1h30 + 30sec/cp"]

1. d4 {[%clk 1:30:56][%emt 0:00:02]} 1... d5 {[%clk 1:30:51][%emt 0:00:09]} 2.
c4 {[%clk 1:30:59][%emt 0:00:27]} 2... e6 {[%clk 1:31:03][%emt 0:00:18]} 3.
Nf3 {[%clk 1:30:34][%emt 0:00:56]} 3... Nf6 {[%clk 1:30:59][%emt 0:00:33]} 4.
g3 {[%clk 1:29:37][%emt 0:01:27]} 4... Bb4+ {[%clk 1:30:32][%emt 0:00:57]} 5.
Bd2 {[%clk 1:28:20][%emt 0:01:48]} 5... Be7 {[%clk 1:30:22][%emt 0:00:39]} 6.
Bg2 {[%clk 1:26:40][%emt 0:02:10]} 6... O-O {[%clk 1:30:37][%emt 0:00:15]} 7.
O-O {[%clk 1:26:17][%emt 0:00:59]} 7... Nbd7 {[%clk 1:29:57][%emt 0:01:05]} 8.
cxd5 {[%clk 1:24:26][%emt 0:02:21]} 8... exd5 {[%clk 1:28:58][%emt 0:01:28]}
9. Nc3 {[%clk 1:22:32][%emt 0:02:24]} 9... c6 {[%clk 1:27:09][%emt 0:02:20]}
10. Qc2 {[%clk 1:19:03][%emt 0:03:58]} 10... Bd6 {[%clk 1:23:02][%emt 0:04:38]}
 11. Bg5 {[%clk 1:14:55][%emt 0:04:38]} 11... Re8 {[%clk 1:12:34][%emt
0:10:59]} 12. e4 {[%clk 1:09:26][%emt 0:05:59]} 12... dxe4 {[%clk
1:12:26][%emt 0:00:38]} 13. Nxe4 {[%clk 1:09:08][%emt 0:00:48]} 13... Be7
{[%clk 1:12:11][%emt 0:00:45]} 14. Rfe1 {[%clk 1:08:22][%emt 0:01:15]} 14...
h6 {[%clk 1:08:28][%emt 0:04:13]} 15. Nxf6+ {[%clk 0:59:03][%emt 0:09:49]}
15... Nxf6 {[%clk 1:07:24][%emt 0:01:34]} 16. Bxf6 {[%clk 0:52:29][%emt
0:07:04]} 16... Bxf6 {[%clk 1:07:49][%emt 0:00:05]} 17. Rxe8+ {[%clk
0:52:49][%emt 0:00:10]} 17... Qxe8 {[%clk 1:08:17][%emt 0:00:02]} 18. Re1
{[%clk 0:52:54][%emt 0:00:24]} 18... Qd8 {[%clk 1:06:39][%emt 0:02:09]} 19.
Ne5 {[%clk 0:47:09][%emt 0:06:15]} 19... Be6 {[%clk 1:02:24][%emt 0:04:45]}
20. Qc3 {[%clk 0:42:17][%emt 0:05:22]} 20... Qd6 {[%clk 1:00:01][%emt 0:02:53]}
 21. f4 {[%clk 0:32:56][%emt 0:09:51]} 21... Rd8 {[%clk 0:58:47][%emt 0:01:44]}
 22. Rd1 {[%clk 0:33:10][%emt 0:00:16]} 22... Bd5 {[%clk 0:51:37][%emt
0:07:40]} 23. Bxd5 {[%clk 0:30:05][%emt 0:03:35]} 23... Qxd5 {[%clk
0:51:54][%emt 0:00:14]} 24. b3 {[%clk 0:30:08][%emt 0:00:26]} 24... c5 {[%clk
0:51:28][%emt 0:00:57]} 25. Qc4 {[%clk 0:28:49][%emt 0:01:49]} 25... Qxc4
{[%clk 0:49:28][%emt 0:02:30]} 26. Nxc4 {[%clk 0:29:08][%emt 0:00:10]} 26...
Bxd4+ {[%clk 0:49:11][%emt 0:00:47]} 27. Kg2 {[%clk 0:28:03][%emt 0:01:35]}
27... Re8 {[%clk 0:47:58][%emt 0:01:43]} 28. Rd2 {[%clk 0:27:07][%emt 0:01:27]}
 28... Re6 {[%clk 0:40:30][%emt 0:07:57]} 29. Kf3 {[%clk 0:25:17][%emt
0:02:19]} 29... b5 {[%clk 0:37:32][%emt 0:03:28]} 30. Nb2 {[%clk 0:24:33][%emt
0:01:16]} 30... Re3+ {[%clk 0:37:28][%emt 0:00:34]} 31. Kg2 {[%clk
0:24:47][%emt 0:00:15]} 31... Kf8 {[%clk 0:30:26][%emt 0:07:32]} 32. Nd1
{[%clk 0:24:33][%emt 0:00:44]} 32... Re1 {[%clk 0:29:45][%emt 0:01:11]} 33.
Kf3 {[%clk 0:24:03][%emt 0:01:00]} 33... Ke7 {[%clk 0:28:19][%emt 0:01:56]}
34. Re2+ {[%clk 0:24:24][%emt 0:00:09]} 34... Rxe2 {[%clk 0:28:44][%emt
0:00:04]} 35. Kxe2 {[%clk 0:24:49][%emt 0:00:05]} 35... Kd6 {[%clk
0:29:03][%emt 0:00:12]} 36. Ne3 {[%clk 0:24:59][%emt 0:00:20]} 36... Bxe3
{[%clk 0:28:47][%emt 0:00:47]} 37. Kxe3 {[%clk 0:25:22][%emt 0:00:07]} 37...
Kd5 {[%clk 0:29:10][%emt 0:00:06]} 38. a3 {[%clk 0:24:58][%emt 0:00:54]} 38...
f5 {[%clk 0:28:27][%emt 0:01:13]} 39. Kd2 {[%clk 0:24:09][%emt 0:01:19]} 39...
Kd4 {[%clk 0:28:52][%emt 0:00:05]} 40. h3 {[%clk 0:24:05][%emt 0:00:34]} 40...
h5 {[%clk 0:29:02][%emt 0:00:20]} 41. Kc2 {[%clk 0:23:46][%emt 0:00:49]} 41...
b4 {[%clk 0:28:02][%emt 0:01:30]} 42. a4 {[%clk 0:23:31][%emt 0:00:45]} 42...
a5 {[%clk 0:28:17][%emt 0:00:15]} 43. Kd2 {[%clk 0:23:49][%emt 0:00:12]} 43...
c4 {[%clk 0:28:39][%emt 0:00:09]} 44. bxc4 {[%clk 0:24:00][%emt 0:00:19]}
44... Kxc4 {[%clk 0:29:00][%emt 0:00:09]} 45. Kc2 {[%clk 0:24:27][%emt
0:00:03]} 45... b3+ {[%clk 0:29:25][%emt 0:00:05]} 46. Kb2 {[%clk
0:24:53][%emt 0:00:04]} 46... Kb4 {[%clk 0:29:52][%emt 0:00:03]} 0-1

[White "BORCEAUX, Theophile"]
[Black "COLLAS, Anthony"]
[WhiteElo "1888"]
[BlackElo "1672"]
[Result "1-0"]
[Date "2026.03.04"]

[Event "Chpt Reg Jeunes Occitanie 2026 - Espalion"]
[Site "Espalion, France"]
[Round "2.1"]
[ECO "?"]
[Annotator "?"]
[TimeControl "1h30 + 30sec/cp"]

1. d4 {[%clk 1:30:55][%emt 0:00:04]} 1... Nf6 {[%clk 1:30:57][%emt 0:00:03]}
2. Bg5 {[%clk 1:31:19][%emt 0:00:06]} 2... c5 {[%clk 1:31:07][%emt 0:00:21]}
3. Bxf6 {[%clk 1:31:43][%emt 0:00:06]} 3... exf6 {[%clk 1:31:30][%emt 0:00:07]}
 4. d5 {[%clk 1:32:03][%emt 0:00:10]} 4... d6 {[%clk 1:30:50][%emt 0:01:10]}
5. c4 {[%clk 1:32:19][%emt 0:00:14]} 5... b5 {[%clk 1:29:55][%emt 0:01:25]} 6.
cxb5 {[%clk 1:31:27][%emt 0:01:22]} 6... a6 {[%clk 1:29:52][%emt 0:00:33]} 7.
e3 {[%clk 1:31:07][%emt 0:00:50]} 7... Nd7 {[%clk 1:24:37][%emt 0:05:45]} 8.
Nc3 {[%clk 1:30:36][%emt 0:01:00]} 8... f5 {[%clk 1:21:42][%emt 0:03:25]} 9.
Nf3 {[%clk 1:28:47][%emt 0:02:19]} 9... g6 {[%clk 1:21:31][%emt 0:00:41]} 10.
Be2 {[%clk 1:24:52][%emt 0:04:25]} 10... Bg7 {[%clk 1:21:10][%emt 0:00:52]}
11. O-O {[%clk 1:24:02][%emt 0:01:20]} 11... O-O {[%clk 1:20:48][%emt 0:00:51]}
 12. Qc2 {[%clk 1:21:17][%emt 0:03:16]} 12... Nb6 {[%clk 1:18:09][%emt
0:03:09]} 13. Rfd1 {[%clk 1:19:03][%emt 0:02:44]} 13... axb5 {[%clk
1:15:22][%emt 0:03:19]} 14. Bxb5 {[%clk 1:18:05][%emt 0:01:27]} 14... Bb7
{[%clk 1:09:24][%emt 0:06:28]} 15. Qb3 {[%clk 1:13:18][%emt 0:05:16]} 15...
Bxc3 {[%clk 0:58:34][%emt 0:11:22]} 16. bxc3 {[%clk 1:12:40][%emt 0:01:07]}
16... Bxd5 {[%clk 0:57:13][%emt 0:01:51]} 17. Rxd5 {[%clk 1:12:09][%emt
0:01:01]} 17... Nxd5 {[%clk 0:57:08][%emt 0:00:35]} 18. Qxd5 {[%clk
1:12:37][%emt 0:00:02]} 18... Qa5 {[%clk 0:57:11][%emt 0:00:27]} 19. c4 {[%clk
1:12:51][%emt 0:00:16]} 19... Qc3 {[%clk 0:55:11][%emt 0:02:30]} 20. Rd1
{[%clk 1:11:00][%emt 0:02:21]} 20... Rxa2 {[%clk 0:55:15][%emt 0:00:26]} 21.
Qxd6 {[%clk 1:10:38][%emt 0:00:53]} 21... Qc2 {[%clk 0:54:49][%emt 0:00:56]}
22. Rf1 {[%clk 1:10:14][%emt 0:00:52]} 22... Rfa8 {[%clk 0:53:37][%emt
0:01:43]} 23. Qf6 {[%clk 0:59:15][%emt 0:11:27]} 23... h6 {[%clk 0:49:45][%emt
0:04:24]} 24. Ne5 {[%clk 0:58:09][%emt 0:01:37]} 24... R2a7 {[%clk
0:49:24][%emt 0:00:51]} 25. Bc6 {[%clk 0:57:18][%emt 0:01:20]} 25... Rf8
{[%clk 0:44:28][%emt 0:05:26]} 26. Bd5 {[%clk 0:57:30][%emt 0:00:19]} 26...
Qc3 {[%clk 0:40:26][%emt 0:04:32]} 27. Qxg6+ {[%clk 0:57:47][%emt 0:00:12]}
27... Kh8 {[%clk 0:40:39][%emt 0:00:18]} 28. Qxh6+ {[%clk 0:57:52][%emt
0:00:25]} 28... Kg8 {[%clk 0:41:01][%emt 0:00:07]} 29. Qg6+ {[%clk
0:57:38][%emt 0:00:44]} 29... Kh8 {[%clk 0:41:25][%emt 0:00:06]} 30. Bxf7
{[%clk 0:57:30][%emt 0:00:39]} 1-0

[White "OUBIHI, Nael"]
[Black "FOPPOLO, Marvin"]
[WhiteElo "1672"]
[BlackElo "1880"]
[Result "0-1"]
[Date "2026.03.04"]